Workbook

Sheet 低保
A1: 序号 | B1: 镇 | C1: 村 | D1: 保障人 姓名 | E1: 金额（元） | F1: 户保障 人数
A3: 1 | B3: 东岭镇 | C3: 许山头村 | D3: 许鹏辉 | E3: 635 | F3: 1
A4: 2 | B4: 东岭镇 | C4: 许山头村 | D4: 许国林 | E4: 900 | F4: 1
A5: 3 | B5: 东岭镇 | C5: 许山头村 | D5: 许胜煌 | E5: 1200 | F5: 3
A6: 4 | B6: 东岭镇 | C6: 许山头村 | D6: 许进辉 | E6: 1000 | F6: 4
A7: 5 | B7: 东岭镇 | C7: 许山头村 | D7: 许清锋 | E7: 1200 | F7: 4
A8: 6 | B8: 东岭镇 | C8: 许山头村 | D8: 许志平 | E8: 900 | F8: 1
A9: 7 | B9: 东岭镇 | C9: 许山头村 | D9: 许建水 | E9: 900 | F9: 1
A10: 8 | B10: 东岭镇 | C10: 许山头村 | D10: 许志杰 | E10: 900 | F10: 1
A11: 9 | B11: 东岭镇 | C11: 许山头村 | D11: 许永金 | E11: 900 | F11: 1
A12: 10 | B12: 东岭镇 | C12: 许山头村 | D12: 许鹏斌 | E12: 900 | F12: 1
A13: 11 | B13: 东岭镇 | C13: 许山头村 | D13: 许建清 | E13: 900 | F13: 1
A14: 12 | B14: 东岭镇 | C14: 许山头村 | D14: 许坤峰 | E14: 900 | F14: 1
A15: 13 | B15: 东岭镇 | C15: 许山头村 | D15: 许亚辉 | E15: 900 | F15: 1
A16: 14 | B16: 东岭镇 | C16: 许山头村 | D16: 余文河 | E16: 900 | F16: 1
A17: 15 | B17: 东岭镇 | C17: 许山头村 | D17: 黄清汉 | E17: 1365 | F17: 3
A18: 16 | B18: 东岭镇 | C18: 许山头村 | D18: 许阳河 | E18: 1480 | F18: 5
A19: 17 | B19: 东岭镇 | C19: 许山头村 | D19: 洪丽聪 | E19: 1000 | F19: 2
A20: 18 | B20: 东岭镇 | C20: 许山头村 | D20: 许淑环 | E20: 900 | F20: 1
A21: 19 | B21: 东岭镇 | C21: 许山头村 | D21: 苏玉珠 | E21: 1200 | F21: 4
A22: 20 | B22: 东岭镇 | C22: 许山头村 | D22: 许炳林 | E22: 1200 | F22: 2
A23: 21 | B23: 东岭镇 | C23: 许山头村 | D23: 许丽玲 | E23: 900 | F23: 1
A24: 22 | B24: 东岭镇 | C24: 许山头村 | D24: 许细英 | E24: 900 | F24: 1
A25: 23 | B25: 东岭镇 | C25: 许山头村 | D25: 吴亚华 | E25: 1200 | F25: 3
A26: 24 | B26: 东岭镇 | C26: 许山头村 | D26: 许钦江 | E26: 900 | F26: 2
A27: 25 | B27: 东岭镇 | C27: 许山头村 | D27: 余志土 | E27: 900 | F27: 1
A28: 26 | B28: 东岭镇 | C28: 许山头村 | D28: 余素英 | E28: 1000 | F28: 2
A29: 27 | B29: 东岭镇 | C29: 许山头村 | D29: 许江泉 | E29: 1200 | F29: 3
A30: 28 | B30: 东岭镇 | C30: 许山头村 | D30: 许晶晶 | E30: 1900 | F30: 3
A31: 29 | B31: 东岭镇 | C31: 许山头村 | D31: 许雅云 | E31: 900 | F31: 1
A32: 30 | B32: 东岭镇 | C32: 许山头村 | D32: 张细燕 | E32: 1200 | F32: 5
A33: 31 | B33: 东岭镇 | C33: 许山头村 | D33: 许灿河 | E33: 900 | F33: 1
A34: 32 | B34: 东岭镇 | C34: 小坵村 | D34: 刘秋英 | E34: 1800 | F34: 2
A35: 33 | B35: 东岭镇 | C35: 小坵村 | D35: 刘冰锋 | E35: 900 | F35: 1
A36: 34 | B36: 东岭镇 | C36: 小坵村 | D36: 刘侨红 | E36: 1000 | F36: 2
A37: 35 | B37: 东岭镇 | C37: 小坵村 | D37: 刘和洪 | E37: 900 | F37: 1
A38: 36 | B38: 东岭镇 | C38: 小坵村 | D38: 刘国林 | E38: 900 | F38: 1
A39: 37 | B39: 东岭镇 | C39: 小坵村 | D39: 刘文雄 | E39: 600 | F39: 1
A40: 38 | B40: 东岭镇 | C40: 小坵村 | D40: 刘梅华 | E40: 900 | F40: 1
A41: 39 | B41: 东岭镇 | C41: 小坵村 | D41: 刘良江 | E41: 900 | F41: 1
A42: 40 | B42: 东岭镇 | C42: 小坵村 | D42: 刘雪红 | E42: 900 | F42: 1
A43: 41 | B43: 东岭镇 | C43: 小坵村 | D43: 刘伟平 | E43: 900 | F43: 1
A44: 42 | B44: 东岭镇 | C44: 小坵村 | D44: 刘淑珠 | E44: 900 | F44: 1
A45: 43 | B45: 东岭镇 | C45: 小坵村 | D45: 刘文溪 | E45: 1200 | F45: 3
A46: 44 | B46: 东岭镇 | C46: 小坵村 | D46: 刘丽萍 | E46: 1000 | F46: 3
A47: 45 | B47: 东岭镇 | C47: 小坵村 | D47: 刘水华 | E47: 900 | F47: 1
A48: 46 | B48: 东岭镇 | C48: 小坵村 | D48: 刘江龙 | E48: 1200 | F48: 4
A49: 47 | B49: 东岭镇 | C49: 小坵村 | D49: 康淑云 | E49: 1000 | F49: 2
A50: 48 | B50: 东岭镇 | C50: 小坵村 | D50: 张雪凤 | E50: 1100 | F50: 2
A51: 49 | B51: 东岭镇 | C51: 小坵村 | D51: 刘安妮 | E51: 900 | F51: 1
A52: 50 | B52: 东岭镇 | C52: 赤石村 | D52: 张桂凤 | E52: 1200 | F52: 4
A53: 51 | B53: 东岭镇 | C53: 赤石村 | D53: 张清云 | E53: 900 | F53: 1
A54: 52 | B54: 东岭镇 | C54: 赤石村 | D54: 张洪海 | E54: 900 | F54: 1
A55: 53 | B55: 东岭镇 | C55: 赤石村 | D55: 张荣桂 | E55: 755 | F55: 1
A56: 54 | B56: 东岭镇 | C56: 赤石村 | D56: 张惠红 | E56: 900 | F56: 1
A57: 55 | B57: 东岭镇 | C57: 赤石村 | D57: 张洪温 | E57: 1315 | F57: 3
A58: 56 | B58: 东岭镇 | C58: 赤石村 | D58: 张昆前 | E58: 900 | F58: 1
A59: 57 | B59: 东岭镇 | C59: 赤石村 | D59: 张景阳 | E59: 1200 | F59: 4
A60: 58 | B60: 东岭镇 | C60: 赤石村 | D60: 黄淑花 | E60: 1200 | F60: 3
A61: 59 | B61: 东岭镇 | C61: 赤石村 | D61: 张亚红 | E61: 900 | F61: 1
A62: 60 | B62: 东岭镇 | C62: 赤石村 | D62: 张习辉 | E62: 900 | F62: 1
A63: 61 | B63: 东岭镇 | C63: 赤石村 | D63: 张清国 | E63: 1200 | F63: 4
A64: 62 | B64: 东岭镇 | C64: 赤石村 | D64: 林阿三 | E64: 900 | F64: 1
A65: 63 | B65: 东岭镇 | C65: 赤石村 | D65: 张月霞 | E65: 900 | F65: 1
A66: 64 | B66: 东岭镇 | C66: 赤石村 | D66: 王美珍 | E66: 1100 | F66: 2
A67: 65 | B67: 东岭镇 | C67: 赤石村 | D67: 张昆枝 | E67: 1000 | F67: 2
A68: 66 | B68: 东岭镇 | C68: 赤石村 | D68: 陈小琼 | E68: 900 | F68: 2
A69: 67 | B69: 东岭镇 | C69: 赤石村 | D69: 张月蓉 | E69: 900 | F69: 1
A70: 68 | B70: 东岭镇 | C70: 赤石村 | D70: 张梅钦 | E70: 900 | F70: 1
A71: 69 | B71: 东岭镇 | C71: 赤石村 | D71: 张冰冰 | E71: 900 | F71: 1
A72: 70 | B72: 东岭镇 | C72: 赤石村 | D72: 张清汝 | E72: 900 | F72: 1
A73: 71 | B73: 东岭镇 | C73: 赤石村 | D73: 张帆 | E73: 900 | F73: 1
A74: 72 | B74: 东岭镇 | C74: 赤石村 | D74: 陈雪花 | E74: 1000 | F74: 2
A75: 73 | B75: 东岭镇 | C75: 赤石村 | D75: 康学萍 | E75: 1200 | F75: 4
A76: 74 | B76: 东岭镇 | C76: 赤石村 | D76: 张樱 | E76: 900 | F76: 1
A77: 75 | B77: 东岭镇 | C77: 赤石村 | D77: 张建阳 | E77: 900 | F77: 1
A78: 76 | B78: 东岭镇 | C78: 大坵村 | D78: 刘清江 | E78: 900 | F78: 1
A79: 77 | B79: 东岭镇 | C79: 大坵村 | D79: 刘清彬 | E79: 615 | F79: 1
A80: 78 | B80: 东岭镇 | C80: 大坵村 | D80: 刘和庆 | E80: 900 | F80: 1
A81: 79 | B81: 东岭镇 | C81: 大坵村 | D81: 陈美容 | E81: 900 | F81: 1
A82: 80 | B82: 东岭镇 | C82: 大坵村 | D82: 刘燕青 | E82: 900 | F82: 1
A83: 81 | B83: 东岭镇 | C83: 大坵村 | D83: 刘小月 | E83: 1200 | F83: 3
A84: 82 | B84: 东岭镇 | C84: 大坵村 | D84: 刘月红 | E84: 1000 | F84: 2
A85: 83 | B85: 东岭镇 | C85: 大坵村 | D85: 邱江城 | E85: 1100 | F85: 2
A86: 84 | B86: 东岭镇 | C86: 大坵村 | D86: 刘建桥 | E86: 900 | F86: 1
A87: 85 | B87: 东岭镇 | C87: 大坵村 | D87: 刘如锋 | E87: 1000 | F87: 2
A88: 86 | B88: 东岭镇 | C88: 大坵村 | D88: 张小红 | E88: 720 | F88: 1
A89: 87 | B89: 东岭镇 | C89: 大坵村 | D89: 邱江泽 | E89: 700 | F89: 1
A90: 88 | B90: 东岭镇 | C90: 大坵村 | D90: 刘雪月 | E90: 720 | F90: 1
A91: 89 | B91: 东岭镇 | C91: 东岭村 | D91: 张建冲 | E91: 1365 | F91: 4
A92: 90 | B92: 东岭镇 | C92: 东岭村 | D92: 张添水 | E92: 1110 | F92: 2
A93: 91 | B93: 东岭镇 | C93: 东岭村 | D93: 张杰河 | E93: 1900 | F93: 3
A94: 92 | B94: 东岭镇 | C94: 东岭村 | D94: 张平桂 | E94: 755 | F94: 1
A95: 93 | B95: 东岭镇 | C95: 东岭村 | D95: 张剑强 | E95: 1800 | F95: 3
A96: 94 | B96: 东岭镇 | C96: 东岭村 | D96: 张灿阳 | E96: 1800 | F96: 2
A97: 95 | B97: 东岭镇 | C97: 东岭村 | D97: 许丽云 | E97: 1265 | F97: 3
A98: 96 | B98: 东岭镇 | C98: 东岭村 | D98: 张国汾 | E98: 1000 | F98: 2
A99: 97 | B99: 东岭镇 | C99: 东岭村 | D99: 涂燕红 | E99: 900 | F99: 1
A100: 98 | B100: 东岭镇 | C100: 东岭村 | D100: 林东木 | E100: 900 | F100: 1
A101: 99 | B101: 东岭镇 | C101: 东岭村 | D101: 张平发 | E101: 900 | F101: 1
A102: 100 | B102: 东岭镇 | C102: 东岭村 | D102: 张钦彬 | E102: 1200 | F102: 4
A103: 101 | B103: 东岭镇 | C103: 东岭村 | D103: 张灿阳 | E103: 600 | F103: 1
A104: 102 | B104: 东岭镇 | C104: 东岭村 | D104: 张秋海 | E104: 1200 | F104: 2
A105: 103 | B105: 东岭镇 | C105: 东岭村 | D105: 张** | E105: 1900 | F105: 4
A106: 104 | B106: 东岭镇 | C106: 东岭村 | D106: 张锦龙 | E106: 900 | F106: 1
A107: 105 | B107: 东岭镇 | C107: 东岭村 | D107: 张** | E107: 1400 | F107: 2
A108: 106 | B108: 东岭镇 | C108: 东岭村 | D108: 王丽玲 | E108: 1000 | F108: 2
A109: 107 | B109: 东岭镇 | C109: 东岭村 | D109: 张杰良 | E109: 700 | F109: 1
A110: 108 | B110: 东岭镇 | C110: 东岭村 | D110: 张晓裕 | E110: 1000 | F110: 2
A111: 109 | B111: 东岭镇 | C111: 东岭村 | D111: 万* | E111: 720 | F111: 1
A112: 110 | B112: 东岭镇 | C112: 东岭村 | D112: 张锦惠 | E112: 1000 | F112: 2
A113: 111 | B113: 东岭镇 | C113: 东岭村 | D113: 张** | E113: 900 | F113: 1
A114: 112 | B114: 东岭镇 | C114: 东岭村 | D114: 张群洲 | E114: 900 | F114: 1
A115: 113 | B115: 东岭镇 | C115: 前厝村 | D115: 张国平 | E115: 1100 | F115: 3
A116: 114 | B116: 东岭镇 | C116: 前厝村 | D116: 张灿忠 | E116: 1100 | F116: 2
A117: 115 | B117: 东岭镇 | C117: 前厝村 | D117: 张龙锋 | E117: 900 | F117: 1
A118: 116 | B118: 东岭镇 | C118: 前厝村 | D118: 张建能 | E118: 650 | F118: 1
A119: 117 | B119: 东岭镇 | C119: 前厝村 | D119: 张连辉 | E119: 900 | F119: 1
A120: 118 | B120: 东岭镇 | C120: 前厝村 | D120: 张灿杰 | E120: 900 | F120: 1
A121: 119 | B121: 东岭镇 | C121: 前厝村 | D121: 张育智 | E121: 650 | F121: 1
A122: 120 | B122: 东岭镇 | C122: 前厝村 | D122: 张清凤 | E122: 900 | F122: 1
A123: 121 | B123: 东岭镇 | C123: 前厝村 | D123: 张建德 | E123: 900 | F123: 1
A124: 122 | B124: 东岭镇 | C124: 前厝村 | D124: 张振奎 | E124: 1200 | F124: 3
A125: 123 | B125: 东岭镇 | C125: 前厝村 | D125: 张** | E125: 1800 | F125: 2
A126: 124 | B126: 东岭镇 | C126: 前厝村 | D126: 张文良 | E126: 1200 | F126: 3
A127: 125 | B127: 东岭镇 | C127: 前厝村 | D127: 张保兰 | E127: 1000 | F127: 2
A128: 126 | B128: 东岭镇 | C128: 前厝村 | D128: 张晓波 | E128: 900 | F128: 1
A129: 127 | B129: 东岭镇 | C129: 前厝村 | D129: 刘美华 | E129: 1000 | F129: 3
A130: 128 | B130: 东岭镇 | C130: 前厝村 | D130: 张锦章 | E130: 900 | F130: 1
A131: 129 | B131: 东岭镇 | C131: 前厝村 | D131: 张月卿 | E131: 1200 | F131: 3
A132: 130 | B132: 东岭镇 | C132: 前厝村 | D132: 张森福 | E132: 1100 | F132: 3
A133: 131 | B133: 东岭镇 | C133: 前厝村 | D133: 张淑云 | E133: 1200 | F133: 3
A134: 132 | B134: 东岭镇 | C134: 前厝村 | D134: 唐佩珍 | E134: 1200 | F134: 3
A135: 133 | B135: 东岭镇 | C135: 前厝村 | D135: 张阿三 | E135: 900 | F135: 1
A136: 134 | B136: 东岭镇 | C136: 前厝村 | D136: 张志强 | E136: 1000 | F136: 2
A137: 135 | B137: 东岭镇 | C137: 前厝村 | D137: 张明伙 | E137: 900 | F137: 1
A138: 136 | B138: 东岭镇 | C138: 前厝村 | D138: 张平忠 | E138: 1200 | F138: 4
A139: 137 | B139: 东岭镇 | C139: 前厝村 | D139: 张少杰 | E139: 900 | F139: 1
A140: 138 | B140: 东岭镇 | C140: 前厝村 | D140: 张** | E140: 1200 | F140: 5
A141: 139 | B141: 东岭镇 | C141: 前厝村 | D141: 张云娥 | E141: 900 | F141: 2
A142: 140 | B142: 东岭镇 | C142: 东埭村 | D142: 许振川 | E142: 1100 | F142: 3
A143: 141 | B143: 东岭镇 | C143: 东埭村 | D143: 许江泉 | E143: 900 | F143: 1
A144: 142 | B144: 东岭镇 | C144: 东埭村 | D144: 许清阳 | E144: 1000 | F144: 2
A145: 143 | B145: 东岭镇 | C145: 东埭村 | D145: 柳群雄 | E145: 1210 | F145: 3
A146: 144 | B146: 东岭镇 | C146: 东埭村 | D146: 许杰清 | E146: 1200 | F146: 4
A147: 145 | B147: 东岭镇 | C147: 东埭村 | D147: 余汉泉 | E147: 800 | F147: 1
A148: 146 | B148: 东岭镇 | C148: 东埭村 | D148: 许锦昆 | E148: 900 | F148: 1
A149: 147 | B149: 东岭镇 | C149: 东埭村 | D149: 谢丽芳 | E149: 1350 | F149: 3
A150: 148 | B150: 东岭镇 | C150: 东埭村 | D150: 黄莲莉 | E150: 1200 | F150: 3
A151: 149 | B151: 东岭镇 | C151: 东埭村 | D151: 许锦枝 | E151: 1200 | F151: 4
A152: 150 | B152: 东岭镇 | C152: 东埭村 | D152: 张婉霞 | E152: 1200 | F152: 3
A153: 151 | B153: 东岭镇 | C153: 东埭村 | D153: 许文泉 | E153: 900 | F153: 1
A154: 152 | B154: 东岭镇 | C154: 东埭村 | D154: 许坤辉 | E154: 1200 | F154: 3
A155: 153 | B155: 东岭镇 | C155: 东埭村 | D155: 柳小玲 | E155: 1200 | F155: 5
A156: 154 | B156: 东岭镇 | C156: 东埭村 | D156: 许** | E156: 900 | F156: 1
A157: 155 | B157: 东岭镇 | C157: 东埭村 | D157: 张荣钦 | E157: 900 | F157: 1
A158: 156 | B158: 东岭镇 | C158: 东埭村 | D158: 余彬法 | E158: 900 | F158: 1
A159: 157 | B159: 东岭镇 | C159: 东埭村 | D159: 柳明芳 | E159: 900 | F159: 1
A160: 158 | B160: 东岭镇 | C160: 东埭村 | D160: 许晓昆 | E160: 1000 | F160: 2
A161: 159 | B161: 东岭镇 | C161: 东埭村 | D161: 柳云龙 | E161: 1200 | F161: 4
A162: 160 | B162: 东岭镇 | C162: 东埭村 | D162: 柳炳煌 | E162: 1200 | F162: 4
A163: 161 | B163: 东岭镇 | C163: 东埭村 | D163: 柳富泉 | E163: 1200 | F163: 3
A164: 162 | B164: 东岭镇 | C164: 东埭村 | D164: 张丽娥 | E164: 1000 | F164: 2
A165: 163 | B165: 东岭镇 | C165: 东埭村 | D165: 张** | E165: 720 | F165: 1
A166: 164 | B166: 东岭镇 | C166: 东埭村 | D166: 许跃南 | E166: 1200 | F166: 4
A167: 165 | B167: 东岭镇 | C167: 荷山村 | D167: 刘德良 | E167: 1350 | F167: 3
A168: 166 | B168: 东岭镇 | C168: 荷山村 | D168: 刘青云 | E168: 1000 | F168: 2
A169: 167 | B169: 东岭镇 | C169: 荷山村 | D169: 刘珊珊 | E169: 900 | F169: 1
A170: 168 | B170: 东岭镇 | C170: 荷山村 | D170: 刘培阳 | E170: 1000 | F170: 2
A171: 169 | B171: 东岭镇 | C171: 荷山村 | D171: 刘昆杰 | E171: 1500 | F171: 4
A172: 170 | B172: 东岭镇 | C172: 荷山村 | D172: 刘国平 | E172: 1200 | F172: 4
A173: 171 | B173: 东岭镇 | C173: 荷山村 | D173: 刘小月 | E173: 900 | F173: 1
A174: 172 | B174: 东岭镇 | C174: 荷山村 | D174: 刘** | E174: 1200 | F174: 3
A175: 173 | B175: 东岭镇 | C175: 荷山村 | D175: 张明月 | E175: 900 | F175: 1
A176: 174 | B176: 东岭镇 | C176: 荷山村 | D176: 刘凌强 | E176: 900 | F176: 1
A177: 175 | B177: 东岭镇 | C177: 荷山村 | D177: 刘** | E177: 900 | F177: 1
A178: 176 | B178: 东岭镇 | C178: 荷山村 | D178: 刘景瑜 | E178: 900 | F178: 1
A179: 177 | B179: 东岭镇 | C179: 荷山村 | D179: 刘国灿 | E179: 900 | F179: 1
A180: 178 | B180: 东岭镇 | C180: 荷山村 | D180: 刘建峰 | E180: 1200 | F180: 4
A181: 179 | B181: 东岭镇 | C181: 荷山村 | D181: 刘江清 | E181: 900 | F181: 1
A182: 180 | B182: 东岭镇 | C182: 荷山村 | D182: 刘** | E182: 900 | F182: 1
A183: 181 | B183: 东岭镇 | C183: 前林村 | D183: 林杰龙 | E183: 1500 | F183: 5
A184: 182 | B184: 东岭镇 | C184: 前林村 | D184: 余细金 | E184: 900 | F184: 1
A185: 183 | B185: 东岭镇 | C185: 前林村 | D185: 林明兴 | E185: 2115 | F185: 3
A186: 184 | B186: 东岭镇 | C186: 前林村 | D186: 陈术 | E186: 1200 | F186: 3
A187: 185 | B187: 东岭镇 | C187: 前林村 | D187: 龚福树 | E187: 900 | F187: 1
A188: 186 | B188: 东岭镇 | C188: 前林村 | D188: 龚良兴 | E188: 900 | F188: 1
A189: 187 | B189: 东岭镇 | C189: 前林村 | D189: 龚爱娥 | E189: 1000 | F189: 2
A190: 188 | B190: 东岭镇 | C190: 前林村 | D190: 龚云霞 | E190: 900 | F190: 1
A191: 189 | B191: 东岭镇 | C191: 前林村 | D191: 龚汉峰 | E191: 900 | F191: 1
A192: 190 | B192: 东岭镇 | C192: 前林村 | D192: 林阳河 | E192: 1160 | F192: 2
A193: 191 | B193: 东岭镇 | C193: 前林村 | D193: 龚丽珍 | E193: 900 | F193: 1
A194: 192 | B194: 东岭镇 | C194: 前林村 | D194: 林雪云 | E194: 1000 | F194: 2
A195: 193 | B195: 东岭镇 | C195: 前林村 | D195: 林振辉 | E195: 900 | F195: 1
A196: 194 | B196: 东岭镇 | C196: 前林村 | D196: 张雪风 | E196: 1000 | F196: 2
A197: 195 | B197: 东岭镇 | C197: 前林村 | D197: 杨启河 | E197: 1200 | F197: 4
A198: 196 | B198: 东岭镇 | C198: 前林村 | D198: 陈宝艳 | E198: 900 | F198: 1
A199: 197 | B199: 东岭镇 | C199: 前林村 | D199: 林浓冰 | E199: 900 | F199: 1
A200: 198 | B200: 东岭镇 | C200: 前林村 | D200: 林素兰 | E200: 900 | F200: 1
A201: 199 | B201: 东岭镇 | C201: 前林村 | D201: 龚万永 | E201: 900 | F201: 1
... 4887 more rows

Sheet 特困（分散）
A1: 序号 | B1: 镇 | C1: 村 | D1: 姓名 | E1: 类别 | F1: 月供养标准（元）
F2: 基本生活费 | G2: 照料护理费 | H2: 合计
A3: 1 | B3: 东岭镇 | C3: 西埔村 | D3: 刘连全 | E3: 全自理 | F3: 1170 | G3: 220 | H3: =F3+G3 -> 1390
A4: 2 | B4: 东岭镇 | C4: 西埔村 | D4: 刘福泉 | E4: 全自理 | F4: 1170 | G4: 220 | H4: =F4+G4 -> 1390
A5: 3 | B5: 东岭镇 | C5: 西埔村 | D5: 刘国彬 | E5: 全自理 | F5: 1170 | G5: 220 | H5: =F5+G5 -> 1390
A6: 4 | B6: 东岭镇 | C6: 许山头村 | D6: 许辉土 | E6: 全自理 | F6: 1170 | G6: 220 | H6: =F6+G6 -> 1390
A7: 5 | B7: 东岭镇 | C7: 湖边村 | D7: 柳木法 | E7: 全自理 | F7: 1170 | G7: 220 | H7: =F7+G7 -> 1390
A8: 6 | B8: 东岭镇 | C8: 埔尾村 | D8: 张国辉 | E8: 全自理 | F8: 1170 | G8: 220 | H8: =F8+G8 -> 1390
A9: 7 | B9: 东岭镇 | C9: 湖埭头村 | D9: 吴添泉 | E9: 全自理 | F9: 1170 | G9: 220 | H9: 1390
A10: 8 | B10: 东岭镇 | C10: 三村村 | D10: 徐金伙 | E10: 全自理 | F10: 1170 | G10: 220 | H10: 1390
A11: 9 | B11: 东岭镇 | C11: 涂厝村 | D11: 张钦江 | E11: 全自理 | F11: 1170 | G11: 220 | H11: 1390
A12: 10 | B12: 东岭镇 | C12: 涂厝村 | D12: 陈金枝 | E12: 全自理 | F12: 1170 | G12: 220 | H12: 1390
A13: 11 | B13: 东岭镇 | C13: 前林村 | D13: 林锦宗 | E13: 全自理 | F13: 1170 | G13: 220 | H13: 1390
A14: 12 | B14: 东岭镇 | C14: 前林村 | D14: 林建良 | E14: 全自理 | F14: 1170 | G14: 220 | H14: 1390
A15: 13 | B15: 紫山镇 | C15: 石马村 | D15: 郑利昌 | E15: 全自理 | F15: 1170 | G15: 220 | H15: =F15+G15 -> 1390
A16: 14 | B16: 紫山镇 | C16: 石马村 | D16: 王国钦 | E16: 全自理 | F16: 1170 | G16: 220 | H16: 1390
A17: 15 | B17: 紫山镇 | C17: 美仁村 | D17: 胡碧英 | E17: 全护理 | F17: 1170 | G17: 1098 | H17: 2268
A18: 16 | B18: 紫山镇 | C18: 后垵村 | D18: 郑桂芳 | E18: 全自理 | F18: 1170 | G18: 220 | H18: 1390
A19: 17 | B19: 紫山镇 | C19: 后垵村 | D19: 郑铁明 | E19: 全自理 | F19: 1170 | G19: 220 | H19: 1390
A20: 18 | B20: 紫山镇 | C20: 后垵村 | D20: 曾触宗 | E20: 全自理 | F20: 1170 | G20: 220 | H20: 1390
A21: 19 | B21: 紫山镇 | C21: 后垵村 | D21: 郑秀兰 | E21: 全自理 | F21: 1170 | G21: 220 | H21: 1390
A22: 20 | B22: 紫山镇 | C22: 油园村 | D22: 林青山 | E22: 全自理 | F22: 1170 | G22: 220 | H22: 1390
A23: 21 | B23: 紫山镇 | C23: 油园村 | D23: 饶美珠 | E23: 半护理 | F23: 1170 | G23: 549 | H23: 1719
A24: 22 | B24: 紫山镇 | C24: 光山村 | D24: 曾海水 | E24: 全自理 | F24: 1170 | G24: 220 | H24: 1390
A25: 23 | B25: 紫山镇 | C25: 南安村 | D25: 郑培元 | E25: 全自理 | F25: 1170 | G25: 220 | H25: 1390
A26: 24 | B26: 紫山镇 | C26: 顶赤涂村 | D26: 陈法明 | E26: 全护理 | F26: 1170 | G26: 1098 | H26: 2268
A27: 25 | B27: 紫山镇 | C27: 顶赤涂村 | D27: 陈开顺 | E27: 全自理 | F27: 1170 | G27: 220 | H27: 1390
A28: 26 | B28: 紫山镇 | C28: 坝下村 | D28: 赵国珍 | E28: 全自理 | F28: 1170 | G28: 220 | H28: 1390
A29: 27 | B29: 紫山镇 | C29: 蓝田村 | D29: 许倚水 | E29: 全自理 | F29: 1170 | G29: 220 | H29: 1390
A30: 28 | B30: 紫山镇 | C30: 龙石村 | D30: 陈培生 | E30: 全自理 | F30: 1170 | G30: 220 | H30: 1390
A31: 29 | B31: 紫山镇 | C31: 龙石村 | D31: 陈土水 | E31: 全自理 | F31: 1170 | G31: 220 | H31: 1390
A32: 30 | B32: 紫山镇 | C32: 龙石村 | D32: 陈亚国 | E32: 全自理 | F32: 1170 | G32: 220 | H32: =F32+G32 -> 1390
A33: 31 | B33: 紫山镇 | C33: 半岭村 | D33: 许国章 | E33: 全自理 | F33: 1170 | G33: 220 | H33: 1390
A34: 32 | B34: 紫山镇 | C34: 尾山村 | D34: 陈振川 | E34: 全自理 | F34: 1170 | G34: 220 | H34: 1390
A35: 33 | B35: 紫山镇 | C35: 尾山村 | D35: 王清元 | E35: 全自理 | F35: 1170 | G35: 220 | H35: 1390
A36: 34 | B36: 紫山镇 | C36: 尾山村 | D36: 陈琼华 | E36: 全自理 | F36: 1170 | G36: 220 | H36: 1390
A37: 35 | B37: 小岞镇 | C37: 前海村 | D37: 李飞山 | E37: 全自理 | F37: 1170 | G37: 220 | H37: 1390
A38: 36 | B38: 小岞镇 | C38: 前海村 | D38: 李阿玉 | E38: 全自理 | F38: 1170 | G38: 220 | H38: 1390
A39: 37 | B39: 小岞镇 | C39: 前峰村 | D39: 康志伟 | E39: 全自理 | F39: 1170 | G39: 220 | H39: 1390
A40: 38 | B40: 小岞镇 | C40: 前峰村 | D40: 李厝兴 | E40: 全自理 | F40: 1170 | G40: 220 | H40: 1390
A41: 39 | B41: 小岞镇 | C41: 前群村 | D41: 康玉川 | E41: 半护理 | F41: 1170 | G41: 549 | H41: =F41+G41 -> 1719
A42: 40 | B42: 小岞镇 | C42: 东山村 | D42: 黄海山 | E42: 全自理 | F42: 1170 | G42: 220 | H42: 1390
A43: 41 | B43: 小岞镇 | C43: 东山村 | D43: 黄玉辉 | E43: 全自理 | F43: 1170 | G43: 220 | H43: 1390
A44: 42 | B44: 小岞镇 | C44: 东山村 | D44: 黄春林 | E44: 全自理 | F44: 1170 | G44: 220 | H44: 1390
A45: 43 | B45: 小岞镇 | C45: 后内村 | D45: 李锦花 | E45: 全自理 | F45: 1170 | G45: 220 | H45: 1390
A46: 44 | B46: 小岞镇 | C46: 南赛西村 | D46: 庄亚美 | E46: 全自理 | F46: 1170 | G46: 220 | H46: 1390
A47: 45 | B47: 小岞镇 | C47: 螺山村 | D47: 李进生 | E47: 全自理 | F47: 1170 | G47: 220 | H47: 1390
A48: 46 | B48: 东桥镇 | C48: 竿岭村 | D48: 吴秀玉 | E48: 全自理 | F48: 1170 | G48: 220 | H48: =F48+G48 -> 1390
A49: 47 | B49: 东桥镇 | C49: 珩海村 | D49: 王文连 | E49: 全自理 | F49: 1170 | G49: 220 | H49: 1390
A50: 48 | B50: 东桥镇 | C50: 西坑村 | D50: 周美英 | E50: 全自理 | F50: 1170 | G50: 220 | H50: 1390
A51: 49 | B51: 东桥镇 | C51: 西坑村 | D51: 吴国才 | E51: 全自理 | F51: 1170 | G51: 220 | H51: 1390
A52: 50 | B52: 东桥镇 | C52: 西坑村 | D52: 吴惠辉 | E52: 全自理 | F52: 1170 | G52: 220 | H52: 1390
A53: 51 | B53: 东桥镇 | C53: 散湖村 | D53: 庄天送 | E53: 全自理 | F53: 1170 | G53: 220 | H53: 1390
A54: 52 | B54: 东桥镇 | C54: 散湖村 | D54: 庄金成 | E54: 全自理 | F54: 1170 | G54: 220 | H54: 1390
A55: 53 | B55: 东桥镇 | C55: 散湖村 | D55: 庄荣才 | E55: 全自理 | F55: 1170 | G55: 220 | H55: 1390
A56: 54 | B56: 东桥镇 | C56: 散湖村 | D56: 庄清波 | E56: 全自理 | F56: 1170 | G56: 220 | H56: 1390
A57: 55 | B57: 东桥镇 | C57: 散湖村 | D57: 庄世添 | E57: 全自理 | F57: 1170 | G57: 220 | H57: 1390
A58: 56 | B58: 东桥镇 | C58: 东湖村 | D58: 张江法 | E58: 全自理 | F58: 1170 | G58: 220 | H58: 1390
A59: 57 | B59: 东桥镇 | C59: 东湖村 | D59: 张闽海 | E59: 半护理 | F59: 1170 | G59: 549 | H59: 1719
A60: 58 | B60: 东桥镇 | C60: 后建村 | D60: 吴美珍 | E60: 全自理 | F60: 1170 | G60: 220 | H60: 1390
A61: 59 | B61: 东桥镇 | C61: 后建村 | D61: 张国山 | E61: 全自理 | F61: 1170 | G61: 220 | H61: 1390
A62: 60 | B62: 东桥镇 | C62: 后建村 | D62: 曾土法 | E62: 全自理 | F62: 1170 | G62: 220 | H62: 1390
A63: 61 | B63: 东桥镇 | C63: 后建村 | D63: 曾荣忠 | E63: 全护理 | F63: 1170 | G63: 1098 | H63: 2268
A64: 62 | B64: 东桥镇 | C64: 坑尾村 | D64: 许国安 | E64: 全自理 | F64: 1170 | G64: 220 | H64: 1390
A65: 63 | B65: 东桥镇 | C65: 燎原村 | D65: 陈国安 | E65: 全护理 | F65: 1170 | G65: 1098 | H65: =F65+G65 -> 2268
A66: 64 | B66: 东桥镇 | C66: 梅庄村 | D66: 庄素琴 | E66: 全自理 | F66: 1170 | G66: 220 | H66: 1390
A67: 65 | B67: 东桥镇 | C67: 梅庄村 | D67: 庄顺波 | E67: 全护理 | F67: 1170 | G67: 1098 | H67: 2268
A68: 66 | B68: 东桥镇 | C68: 梅庄村 | D68: 庄锦波 | E68: 全自理 | F68: 1170 | G68: 220 | H68: 1390
A69: 67 | B69: 东桥镇 | C69: 埔殊村 | D69: 王少阳 | E69: 全护理 | F69: 1170 | G69: 1098 | H69: 2268
A70: 68 | B70: 东桥镇 | C70: 屿头山村 | D70: 陈荣良 | E70: 全自理 | F70: 1170 | G70: 220 | H70: 1390
A71: 69 | B71: 东桥镇 | C71: 厝斗村 | D71: 张丽治 | E71: 半护理 | F71: 1170 | G71: 549 | H71: 1719
A72: 70 | B72: 东桥镇 | C72: 珩山村 | D72: 王伟超 | E72: 全自理 | F72: 1170 | G72: 220 | H72: 1390
A73: 71 | B73: 净峰镇 | C73: 松村村 | D73: 颜晋付 | E73: 全自理 | F73: 1170 | G73: 220 | H73: 1390
A74: 72 | B74: 净峰镇 | C74: 松村村 | D74: 周国荣 | E74: 全自理 | F74: 1170 | G74: 220 | H74: 1390
A75: 73 | B75: 净峰镇 | C75: 城前村 | D75: 周铁玉 | E75: 全自理 | F75: 1170 | G75: 220 | H75: 1390
A76: 74 | B76: 净峰镇 | C76: 湖街村 | D76: 邱荣法 | E76: 全自理 | F76: 1170 | G76: 220 | H76: 1390
A77: 75 | B77: 净峰镇 | C77: 莲峰村 | D77: 陈玉成 | E77: 全自理 | F77: 1170 | G77: 220 | H77: 1390
A78: 76 | B78: 净峰镇 | C78: 莲峰村 | D78: 陈德艮 | E78: 全自理 | F78: 1170 | G78: 220 | H78: 1390
A79: 77 | B79: 净峰镇 | C79: 莲峰村 | D79: 陈文桂 | E79: 全自理 | F79: 1170 | G79: 220 | H79: 1390
A80: 78 | B80: 净峰镇 | C80: 五群村 | D80: 杨水胜 | E80: 全自理 | F80: 1170 | G80: 220 | H80: 1390
A81: 79 | B81: 净峰镇 | C81: 五群村 | D81: 梅伟洪 | E81: 全自理 | F81: 1170 | G81: 220 | H81: 1390
A82: 80 | B82: 净峰镇 | C82: 坑黄村 | D82: 张国溪 | E82: 全自理 | F82: 1170 | G82: 220 | H82: 1390
A83: 81 | B83: 净峰镇 | C83: 坑黄村 | D83: 张阳钦 | E83: 全自理 | F83: 1170 | G83: 220 | H83: =F83+G83 -> 1390
A84: 82 | B84: 净峰镇 | C84: 坑黄村 | D84: 张再兴 | E84: 全自理 | F84: 1170 | G84: 220 | H84: 1390
A85: 83 | B85: 净峰镇 | C85: 墩南村 | D85: 王月华 | E85: 全自理 | F85: 1170 | G85: 220 | H85: 1390
A86: 84 | B86: 净峰镇 | C86: 墩南村 | D86: 王庆林 | E86: 全自理 | F86: 1170 | G86: 220 | H86: 1390
A87: 85 | B87: 净峰镇 | C87: 净北村 | D87: 杨顶祥 | E87: 全自理 | F87: 1170 | G87: 220 | H87: 1390
A88: 86 | B88: 净峰镇 | C88: 山前村 | D88: 王国平 | E88: 全自理 | F88: 1170 | G88: 220 | H88: 1390
A89: 87 | B89: 净峰镇 | C89: 墩北村 | D89: 康建平 | E89: 全自理 | F89: 1170 | G89: 220 | H89: =F89+G89 -> 1390
A90: 88 | B90: 净峰镇 | C90: 洋边村 | D90: 陈跃原 | E90: 半护理 | F90: 1170 | G90: 549 | H90: 1719
A91: 89 | B91: 净峰镇 | C91: 松村村 | D91: 周金财 | E91: 全自理 | F91: 1170 | G91: 220 | H91: 1390
A92: 90 | B92: 净峰镇 | C92: 前炉村 | D92: 吴瑞琼 | E92: 全自理 | F92: 1170 | G92: 220 | H92: 1390
A93: 91 | B93: 净峰镇 | C93: 前炉村 | D93: 张海荣 | E93: 全自理 | F93: 1170 | G93: 220 | H93: 1390
A94: 92 | B94: 净峰镇 | C94: 墩北村 | D94: 康汉强 | E94: 全自理 | F94: 1170 | G94: 220 | H94: 1390
A95: 93 | B95: 净峰镇 | C95: 墩南村 | D95: 王春华 | E95: 全自理 | F95: 1170 | G95: 220 | H95: 1390
A96: 94 | B96: 净峰镇 | C96: 洋边村 | D96: 陈桂红 | E96: 全自理 | F96: 1170 | G96: 220 | H96: 1390
A97: 95 | B97: 净峰镇 | C97: 山前村 | D97: 陈建来 | E97: 全自理 | F97: 1170 | G97: 220 | H97: 1390
A98: 96 | B98: 净峰镇 | C98: 前炉村 | D98: 张玉如 | E98: 全自理 | F98: 1170 | G98: 220 | H98: 1390
A99: 97 | B99: 净峰镇 | C99: 东洋村 | D99: 杨建明 | E99: 全自理 | F99: 1170 | G99: 220 | H99: 1390
A100: 98 | B100: 净峰镇 | C100: 杜厝村 | D100: 杨江辉 | E100: 全自理 | F100: 1170 | G100: 220 | H100: 1390
A101: 99 | B101: 净峰镇 | C101: 东洋村 | D101: 黄平宗 | E101: 半护理 | F101: 1170 | G101: 549 | H101: 1719
A102: 100 | B102: 净峰镇 | C102: 松村村 | D102: 周英琴 | E102: 全自理 | F102: 1170 | G102: 220 | H102: 1390
A103: 101 | B103: 净峰镇 | C103: 杜厝村 | D103: 杨秀梅 | E103: 全自理 | F103: 1170 | G103: 220 | H103: 1390
A104: 102 | B104: 净峰镇 | C104: 西头村 | D104: 张晓宣 | E104: 半护理 | F104: 1170 | G104: 549 | H104: 1719
A105: 103 | B105: 螺城镇 | C105: 新霞社区 | D105: 周清桂 | E105: 半护理 | F105: 1170 | G105: 549 | H105: 1719
A106: 104 | B106: 螺城镇 | C106: 东关社区 | D106: 陈花梅 | E106: 全自理 | F106: 1170 | G106: 220 | H106: 1390
A107: 105 | B107: 螺城镇 | C107: 溪南村 | D107: 陈金宝 | E107: 全护理 | F107: 1170 | G107: 1098 | H107: 2268
A108: 106 | B108: 螺城镇 | C108: 梅山村 | D108: 陈碰珠 | E108: 全自理 | F108: 1170 | G108: 220 | H108: 1390
A109: 107 | B109: 螺城镇 | C109: 梅山村 | D109: 陈晏妹 | E109: 半护理 | F109: 1170 | G109: 549 | H109: 1719
A110: 108 | B110: 螺城镇 | C110: 梅山村 | D110: 陈振宗 | E110: 全自理 | F110: 1170 | G110: 220 | H110: 1390
A111: 109 | B111: 螺城镇 | C111: 东南社区 | D111: 曾招治 | E111: 全自理 | F111: 1170 | G111: 220 | H111: 1390
A112: 110 | B112: 螺城镇 | C112: 前型社区 | D112: 张秀妹 | E112: 全自理 | F112: 1170 | G112: 220 | H112: 1390
A113: 111 | B113: 螺城镇 | C113: 西北社区 | D113: 李惠龙 | E113: 半护理 | F113: 1170 | G113: 549 | H113: 1719
A114: 112 | B114: 螺城镇 | C114: 北关社区 | D114: 王尧煌 | E114: 半护理 | F114: 1170 | G114: 549 | H114: 1719
A115: 113 | B115: 螺城镇 | C115: 中新社区 | D115: 林仕钦 | E115: 全自理 | F115: 1170 | G115: 220 | H115: 1390
A116: 114 | B116: 山霞镇 | C116: 垵固村 | D116: 曾歪头 | E116: 半护理 | F116: 1170 | G116: 549 | H116: 1719
A117: 115 | B117: 山霞镇 | C117: 垵固村 | D117: 曾锦辉 | E117: 全自理 | F117: 1170 | G117: 220 | H117: 1390
A118: 116 | B118: 山霞镇 | C118: 垵固村 | D118: 曾建良 | E118: 全自理 | F118: 1170 | G118: 220 | H118: 1390
A119: 117 | B119: 山霞镇 | C119: 山霞村 | D119: 陈荣海 | E119: 全护理 | F119: 1170 | G119: 1098 | H119: 2268
A120: 118 | B120: 山霞镇 | C120: 山霞村 | D120: 陈清泉 | E120: 半护理 | F120: 1170 | G120: 549 | H120: 1719
A121: 119 | B121: 山霞镇 | C121: 山霞村 | D121: 陈贤奎 | E121: 全自理 | F121: 1170 | G121: 220 | H121: 1390
A122: 120 | B122: 山霞镇 | C122: 山霞村 | D122: 陈志忠 | E122: 全自理 | F122: 1170 | G122: 220 | H122: 1390
A123: 121 | B123: 山霞镇 | C123: 东坑村 | D123: 李郎示 | E123: 全自理 | F123: 1170 | G123: 220 | H123: 1390
A124: 122 | B124: 山霞镇 | C124: 鹰园村 | D124: 黄砚 | E124: 全自理 | F124: 1170 | G124: 220 | H124: 1390
A125: 123 | B125: 山霞镇 | C125: 鹰园村 | D125: 吴素青 | E125: 全自理 | F125: 1170 | G125: 220 | H125: =F125+G125 -> 1390
A126: 124 | B126: 山霞镇 | C126: 鹰园村 | D126: 吴明章 | E126: 全自理 | F126: 1170 | G126: 220 | H126: 1390
A127: 125 | B127: 山霞镇 | C127: 埭透村 | D127: 陈乌有 | E127: 全自理 | F127: 1170 | G127: 220 | H127: 1390
A128: 126 | B128: 山霞镇 | C128: 田边村 | D128: 黄回香 | E128: 全护理 | F128: 1170 | G128: 1098 | H128: 2268
A129: 127 | B129: 山霞镇 | C129: 田边村 | D129: 黄建民 | E129: 全自理 | F129: 1170 | G129: 220 | H129: 1390
A130: 128 | B130: 山霞镇 | C130: 宣美村 | D130: 陈金辉 | E130: 全自理 | F130: 1170 | G130: 220 | H130: 1390
A131: 129 | B131: 山霞镇 | C131: 宣美村 | D131: 陈木火 | E131: 半护理 | F131: 1170 | G131: 549 | H131: 1719
A132: 130 | B132: 螺阳镇 | C132: 后田村 | D132: 林清河 | E132: 全自理 | F132: 1170 | G132: 220 | H132: =F132+G132 -> 1390
A133: 131 | B133: 螺阳镇 | C133: 溪西村 | D133: 郭锦聪 | E133: 全自理 | F133: 1170 | G133: 220 | H133: 1390
A134: 132 | B134: 螺阳镇 | C134: 溪西村 | D134: 曾细川 | E134: 全自理 | F134: 1170 | G134: 220 | H134: 1390
A135: 133 | B135: 螺阳镇 | C135: 钱塘村 | D135: 庄培聪 | E135: 全自理 | F135: 1170 | G135: 220 | H135: 1390
A136: 134 | B136: 螺阳镇 | C136: 松光村 | D136: 曾水川 | E136: 半护理 | F136: 1170 | G136: 549 | H136: 1719
A137: 135 | B137: 螺阳镇 | C137: 松光村 | D137: 陈远国 | E137: 全自理 | F137: 1170 | G137: 220 | H137: 1390
A138: 136 | B138: 螺阳镇 | C138: 松光村 | D138: 曾昭辉 | E138: 全自理 | F138: 1170 | G138: 220 | H138: 1390
A139: 137 | B139: 螺阳镇 | C139: 松光村 | D139: 陈国川 | E139: 全自理 | F139: 1170 | G139: 220 | H139: 1390
A140: 138 | B140: 螺阳镇 | C140: 尾透村 | D140: 张章来 | E140: 全自理 | F140: 1170 | G140: 220 | H140: 1390
A141: 139 | B141: 螺阳镇 | C141: 尾透村 | D141: 刘国民 | E141: 全自理 | F141: 1170 | G141: 220 | H141: 1390
A142: 140 | B142: 螺阳镇 | C142: 工农村 | D142: 曾全伙 | E142: 全自理 | F142: 1170 | G142: 220 | H142: 1390
A143: 141 | B143: 螺阳镇 | C143: 工农村 | D143: 陈碧霞 | E143: 全自理 | F143: 1170 | G143: 220 | H143: 1390
A144: 142 | B144: 螺阳镇 | C144: 下埔村 | D144: 叶炳南 | E144: 全自理 | F144: 1170 | G144: 220 | H144: 1390
A145: 143 | B145: 螺阳镇 | C145: 蒋吴村 | D145: 蒋景希 | E145: 全自理 | F145: 1170 | G145: 220 | H145: 1390
A146: 144 | B146: 螺阳镇 | C146: 侨群村 | D146: 林亚珠 | E146: 全自理 | F146: 1170 | G146: 220 | H146: 1390
A147: 145 | B147: 螺阳镇 | C147: 侨群村 | D147: 林云雄 | E147: 全自理 | F147: 1170 | G147: 220 | H147: 1390
A148: 146 | B148: 螺阳镇 | C148: 侨群村 | D148: 林春法 | E148: 全自理 | F148: 1170 | G148: 220 | H148: 1390
A149: 147 | B149: 螺阳镇 | C149: 松星村 | D149: 孙亚阳 | E149: 全自理 | F149: 1170 | G149: 220 | H149: 1390
A150: 148 | B150: 螺阳镇 | C150: 村下村 | D150: 庄碧凤 | E150: 半护理 | F150: 1170 | G150: 549 | H150: 1719
A151: 149 | B151: 螺阳镇 | C151: 锦水村 | D151: 林玉辉 | E151: 全自理 | F151: 1170 | G151: 220 | H151: 1390
A152: 150 | B152: 螺阳镇 | C152: 工农村 | D152: 曾福彬 | E152: 全自理 | F152: 1170 | G152: 220 | H152: =F152+G152 -> 1390
A153: 151 | B153: 螺阳镇 | C153: 工农村 | D153: 陈辉良 | E153: 全自理 | F153: 1170 | G153: 220 | H153: 1390
A154: 152 | B154: 螺阳镇 | C154: 联群村 | D154: 苏志祥 | E154: 全自理 | F154: 1170 | G154: 220 | H154: 1390
A155: 153 | B155: 螺阳镇 | C155: 联群村 | D155: 曾惠平 | E155: 全自理 | F155: 1170 | G155: 220 | H155: 1390
A156: 154 | B156: 螺阳镇 | C156: 后田村 | D156: 陈惠忠 | E156: 全自理 | F156: 1170 | G156: 220 | H156: 1390
A157: 155 | B157: 螺阳镇 | C157: 后田村 | D157: 吴锦雄 | E157: 全自理 | F157: 1170 | G157: 220 | H157: 1390
A158: 156 | B158: 螺阳镇 | C158: 后田村 | D158: 刘连华 | E158: 全自理 | F158: 1170 | G158: 220 | H158: 1390
A159: 157 | B159: 螺阳镇 | C159: 盘龙村 | D159: 吴为明 | E159: 全自理 | F159: 1170 | G159: 220 | H159: 1390
A160: 158 | B160: 螺阳镇 | C160: 松光村 | D160: 曾雪华 | E160: 全自理 | F160: 1170 | G160: 220 | H160: 1390
A161: 159 | B161: 螺阳镇 | C161: 洋坑村 | D161: 王木贵 | E161: 全自理 | F161: 1170 | G161: 220 | H161: 1390
A162: 160 | B162: 螺阳镇 | C162: 钱塘村 | D162: 庄岳峰 | E162: 全自理 | F162: 1170 | G162: 220 | H162: 1390
A163: 161 | B163: 螺阳镇 | C163: 钱塘村 | D163: 庄碧山 | E163: 全自理 | F163: 1170 | G163: 220 | H163: 1390
A164: 162 | B164: 螺阳镇 | C164: 锦丰村 | D164: 林添辉 | E164: 全自理 | F164: 1170 | G164: 220 | H164: 1390
A165: 163 | B165: 螺阳镇 | C165: 锦里村 | D165: 庄文法 | E165: 全自理 | F165: 1170 | G165: 220 | H165: 1390
A166: 164 | B166: 螺阳镇 | C166: 锦里村 | D166: 汪联春 | E166: 全自理 | F166: 1170 | G166: 220 | H166: 1390
A167: 165 | B167: 螺阳镇 | C167: 尾透村 | D167: 刘文忠 | E167: 全自理 | F167: 1170 | G167: 220 | H167: 1390
A168: 166 | B168: 螺阳镇 | C168: 尾透村 | D168: 陈阔嘴 | E168: 全自理 | F168: 1170 | G168: 220 | H168: 1390
A169: 167 | B169: 螺阳镇 | C169: 尾透村 | D169: 陈荣桂 | E169: 全自理 | F169: 1170 | G169: 220 | H169: 1390
A170: 168 | B170: 螺阳镇 | C170: 蒋吴村 | D170: 蒋抗武 | E170: 全护理 | F170: 1170 | G170: 1098 | H170: 2268
A171: 169 | B171: 螺阳镇 | C171: 东风村 | D171: 陈全金 | E171: 全自理 | F171: 1170 | G171: 220 | H171: 1390
A172: 170 | B172: 螺阳镇 | C172: 盘龙村 | D172: 吴清河 | E172: 全自理 | F172: 1170 | G172: 220 | H172: 1390
A173: 171 | B173: 螺阳镇 | C173: 锦水村 | D173: 林振海 | E173: 全自理 | F173: 1170 | G173: 220 | H173: 1390
A174: 172 | B174: 螺阳镇 | C174: 锦水村 | D174: 林明环 | E174: 全自理 | F174: 1170 | G174: 220 | H174: 1390
A175: 173 | B175: 螺阳镇 | C175: 上坂村 | D175: 蔡添宁 | E175: 全自理 | F175: 1170 | G175: 220 | H175: 1390
A176: 174 | B176: 螺阳镇 | C176: 上坂村 | D176: 蔡为荣 | E176: 全自理 | F176: 1170 | G176: 220 | H176: 1390
A177: 175 | B177: 螺阳镇 | C177: 上坂村 | D177: 蔡煌海 | E177: 全自理 | F177: 1170 | G177: 220 | H177: 1390
A178: 176 | B178: 辋川镇 | C178: 许厝村 | D178: 程逸好 | E178: 全护理 | F178: 1170 | G178: 1098 | H178: 2268
A179: 177 | B179: 辋川镇 | C179: 许厝村 | D179: 程水民 | E179: 全自理 | F179: 1170 | G179: 220 | H179: 1390
A180: 178 | B180: 辋川镇 | C180: 许埭村 | D180: 程玉成 | E180: 全自理 | F180: 1170 | G180: 220 | H180: 1390
A181: 179 | B181: 辋川镇 | C181: 许埭村 | D181: 程永民 | E181: 全自理 | F181: 1170 | G181: 220 | H181: 1390
A182: 180 | B182: 辋川镇 | C182: 下江村 | D182: 江碧宗 | E182: 全自理 | F182: 1170 | G182: 220 | H182: 1390
A183: 181 | B183: 辋川镇 | C183: 小山村 | D183: 张根裕 | E183: 全自理 | F183: 1170 | G183: 220 | H183: 1390
A184: 182 | B184: 辋川镇 | C184: 坪埔村 | D184: 陈碧明 | E184: 全护理 | F184: 1170 | G184: 1098 | H184: 2268
A185: 183 | B185: 辋川镇 | C185: 试剑村 | D185: 何碰海 | E185: 全自理 | F185: 1170 | G185: 220 | H185: 1390
A186: 184 | B186: 辋川镇 | C186: 试剑村 | D186: 何丑生 | E186: 全自理 | F186: 1170 | G186: 220 | H186: 1390
A187: 185 | B187: 辋川镇 | C187: 庄上村 | D187: 何国林 | E187: 全自理 | F187: 1170 | G187: 220 | H187: =F187+G187 -> 1390
A188: 186 | B188: 辋川镇 | C188: 庄上村 | D188: 何水金 | E188: 全自理 | F188: 1170 | G188: 220 | H188: 1390
A189: 187 | B189: 辋川镇 | C189: 庄上村 | D189: 何铁民 | E189: 全自理 | F189: 1170 | G189: 220 | H189: 1390
A190: 188 | B190: 辋川镇 | C190: 庄上村 | D190: 何阿洪 | E190: 全自理 | F190: 1170 | G190: 220 | H190: 1390
A191: 189 | B191: 辋川镇 | C191: 更新村 | D191: 陈安辉 | E191: 全自理 | F191: 1170 | G191: 220 | H191: 1390
A192: 190 | B192: 辋川镇 | C192: 更新村 | D192: 陈服华 | E192: 全护理 | F192: 1170 | G192: 1098 | H192: 2268
A193: 191 | B193: 辋川镇 | C193: 京山村 | D193: 陈世泉 | E193: 全自理 | F193: 1170 | G193: 220 | H193: 1390
A194: 192 | B194: 辋川镇 | C194: 京山村 | D194: 陈明辉 | E194: 全自理 | F194: 1170 | G194: 220 | H194: 1390
A195: 193 | B195: 辋川镇 | C195: 后许村 | D195: 何吉良 | E195: 全自理 | F195: 1170 | G195: 220 | H195: 1390
A196: 194 | B196: 辋川镇 | C196: 玉围村 | D196: 陈清辉 | E196: 半护理 | F196: 1170 | G196: 549 | H196: 1719
A197: 195 | B197: 辋川镇 | C197: 居仁村 | D197: 陈振聪 | E197: 半护理 | F197: 1170 | G197: 549 | H197: 1719
A198: 196 | B198: 辋川镇 | C198: 居仁村 | D198: 陈清辉 | E198: 全自理 | F198: 1170 | G198: 220 | H198: 1390
A199: 197 | B199: 辋川镇 | C199: 居仁村 | D199: 陈承金 | E199: 全自理 | F199: 1170 | G199: 220 | H199: 1390
A200: 198 | B200: 辋川镇 | C200: 居仁村 | D200: 陈振海 | E200: 全自理 | F200: 1170 | G200: 220 | H200: 1390
... 102 more rows

Sheet 特困（集中）
A1: 序号 | B1: 镇 | C1: 村 | D1: 姓名 | E1: 类别 | F1: 月供养标准（元）
F2: 基本生活费 | G2: 照料护理费 | H2: 合计
A3: 1 | B3: 螺阳镇 | C3: 霞光村 | D3: 连国川 | E3: 全护理 | F3: 1755 | G3: 1646 | H3: =F3+G3 -> 3401
A4: 2 | B4: 黄塘镇 | C4: 下坂村 | D4: 施玉凤 | E4: 半护理 | F4: 1755 | G4: 823 | H4: =F4+G4 -> 2578
A5: 3 | B5: 螺阳镇 | C5: 霞光村 | D5: 孙和平 | E5: 半护理 | F5: 1755 | G5: 823 | H5: =F5+G5 -> 2578
A6: 4 | B6: 螺阳镇 | C6: 霞光村 | D6: 庄仰贤 | E6: 半护理 | F6: 1755 | G6: 823 | H6: 2578
A7: 5 | B7: 螺阳镇 | C7: 霞光村 | D7: 廖清国 | E7: 半护理 | F7: 1755 | G7: 823 | H7: 2578
A8: 6 | B8: 螺阳镇 | C8: 霞光村 | D8: 房婉妹 | E8: 半护理 | F8: 1755 | G8: 823 | H8: 2578
A9: 7 | B9: 螺阳镇 | C9: 霞光村 | D9: 张国华 | E9: 半护理 | F9: 1755 | G9: 823 | H9: 2578
A10: 8 | B10: 东桥镇 | C10: 散湖村 | D10: 庄培昆 | E10: 半护理 | F10: 1755 | G10: 823 | H10: 2578
A11: 9 | B11: 螺阳镇 | C11: 村下村 | D11: 王庆忠 | E11: 半护理 | F11: 1755 | G11: 823 | H11: 2578
A12: 10 | B12: 螺阳镇 | C12: 霞光村 | D12: 连志明 | E12: 半护理 | F12: 1755 | G12: 823 | H12: 2578
A13: 11 | B13: 黄塘镇 | C13: 接待村 | D13: 郭瓦枝 | E13: 半护理 | F13: 1755 | G13: 823 | H13: 2578
A14: 12 | B14: 山霞镇 | C14: 下坑村 | D14: 李晚峰 | E14: 半护理 | F14: 1755 | G14: 823 | H14: 2578
A15: 13 | B15: 螺阳镇 | C15: 蒋吴村 | D15: 陆世安 | E15: 全护理 | F15: 1755 | G15: 1646 | H15: 3401
A16: 14 | B16: 螺阳镇 | C16: 霞光村 | D16: 柯晚枝 | E16: 半护理 | F16: 1755 | G16: 823 | H16: =F16+G16 -> 2578
A17: 15 | B17: 螺阳镇 | C17: 霞光村 | D17: 王本明 | E17: 半护理 | F17: 1755 | G17: 823 | H17: 2578
A18: 16 | B18: 螺阳镇 | C18: 霞光村 | D18: 程辉生 | E18: 半护理 | F18: 1755 | G18: 823 | H18: 2578
A19: 17 | B19: 黄塘镇 | C19: 埔兜村 | D19: 姜建辉 | E19: 半护理 | F19: 1755 | G19: 823 | H19: 2578
A20: 18 | B20: 辋川镇 | C20: 许埭村 | D20: 程尧龙 | E20: 半护理 | F20: 1755 | G20: 823 | H20: 2578
A21: 19 | B21: 螺城镇 | C21: 西北社区 | D21: 庄清煌 | E21: 半护理 | F21: 1755 | G21: 823 | H21: 2578
A22: 20 | B22: 东桥镇 | C22: 西湖村 | D22: 张再辉 | E22: 半护理 | F22: 1755 | G22: 823 | H22: 2578
A23: 21 | B23: 涂寨镇 | C23: 和弄村 | D23: 黄青波 | E23: 半护理 | F23: 1755 | G23: 823 | H23: 2578
A24: 22 | B24: 螺阳镇 | C24: 联群村 | D24: 张锦标 | E24: 半护理 | F24: 1755 | G24: 823 | H24: 2578
A25: 23 | B25: 黄塘镇 | C25: 前郭村 | D25: 郭惠龙 | E25: 半护理 | F25: 1755 | G25: 823 | H25: 2578
A26: 24 | B26: 崇武镇 | C26: 潮乐村 | D26: 林建昌 | E26: 半护理 | F26: 1755 | G26: 823 | H26: 2578
A27: 25 | B27: 螺城镇 | C27: 东南社区 | D27: 陈桂萍 | E27: 半护理 | F27: 1755 | G27: 823 | H27: 2578
A28: 26 | B28: 崇武镇 | C28: 大岞村 | D28: 张海滨 | E28: 半护理 | F28: 1755 | G28: 823 | H28: 2578
A29: 27 | B29: 崇武镇 | C29: 霞西村 | D29: 曾华强 | E29: 半护理 | F29: 1755 | G29: 823 | H29: 2578
A30: 28 | B30: 东桥镇 | C30: 东湖村 | D30: 张江明 | E30: 半护理 | F30: 1755 | G30: 823 | H30: 2578
A31: 29 | B31: 涂寨镇 | C31: 曲江村 | D31: 张建平 | E31: 半护理 | F31: 1755 | G31: 823 | H31: 2578
A32: 30 | B32: 螺城镇 | C32: 西北社区 | D32: 辛木生 | E32: 半护理 | F32: 1755 | G32: 823 | H32: 2578
A33: 31 | B33: 辋川镇 | C33: 峰崎村 | D33: 何伟平 | E33: 半护理 | F33: 1755 | G33: 823 | H33: 2578
A34: 32 | B34: 山霞镇 | C34: 前张村 | D34: 张文志 | E34: 半护理 | F34: 1755 | G34: 823 | H34: 2578
A35: 33 | B35: 东岭镇 | C35: 前厝村 | D35: 张伟强 | E35: 全护理 | F35: 1755 | G35: 1646 | H35: 3401
A36: 34 | B36: 山霞镇 | C36: 新塘村 | D36: 陈锦标 | E36: 半护理 | F36: 1755 | G36: 823 | H36: 2578
A37: 35 | B37: 黄塘镇 | C37: 省吟村 | D37: 黄萍兰 | E37: 半护理 | F37: 1755 | G37: 823 | H37: 2578
A38: 36 | B38: 辋川镇 | C38: 峰崎村 | D38: 何碧珍 | E38: 半护理 | F38: 1755 | G38: 823 | H38: 2578
A39: 37 | B39: 辋川镇 | C39: 辋川村 | D39: 陈志昆 | E39: 半护理 | F39: 1755 | G39: 823 | H39: 2578
A40: 38 | B40: 螺阳镇 | C40: 村下村 | D40: 王水川 | E40: 半护理 | F40: 1755 | G40: 823 | H40: 2578
A41: 39 | B41: 螺城镇 | C41: 西北社区 | D41: 张兵虹 | E41: 全护理 | F41: 1755 | G41: 1646 | H41: 3401
A42: 40 | B42: 黄塘镇 | C42: 谢厝村 | D42: 谢梽刚 | E42: 半护理 | F42: 1755 | G42: 823 | H42: 2578
A43: 41 | B43: 紫山镇 | C43: 美仁村 | D43: 胡培明 | E43: 半护理 | F43: 1755 | G43: 823 | H43: 2578
A44: 42 | B44: 螺阳镇 | C44: 联群村 | D44: 庄志丰 | E44: 半护理 | F44: 1755 | G44: 823 | H44: 2578
A45: 43 | B45: 螺城镇 | C45: 北关社区 | D45: 卢云龙 | E45: 半护理 | F45: 1755 | G45: 823 | H45: 2578
A46: 44 | B46: 螺城镇 | C46: 东南社区 | D46: 陈一萍 | E46: 半护理 | F46: 1755 | G46: 823 | H46: 2578
A47: 45 | B47: 螺城镇 | C47: 中新社区 | D47: 陈树平 | E47: 半护理 | F47: 1755 | G47: 823 | H47: 2578
A48: 46 | B48: 螺城镇 | C48: 中新社区 | D48: 庄国文 | E48: 半护理 | F48: 1755 | G48: 823 | H48: 2578
A49: 47 | B49: 螺城镇 | C49: 中新社区 | D49: 曾经三 | E49: 半护理 | F49: 1755 | G49: 823 | H49: 2578
A50: 48 | B50: 螺阳镇 | C50: 霞光村 | D50: 惠零三 | E50: 半护理 | F50: 1755 | G50: 823 | H50: 2578
A51: 49 | B51: 螺阳镇 | C51: 霞光村 | D51: 惠零四 | E51: 半护理 | F51: 1755 | G51: 823 | H51: 2578
A52: 50 | B52: 螺阳镇 | C52: 霞光村 | D52: 惠零九 | E52: 半护理 | F52: 1755 | G52: 823 | H52: 2578
A53: 51 | B53: 螺阳镇 | C53: 霞光村 | D53: 惠十三 | E53: 半护理 | F53: 1755 | G53: 823 | H53: 2578
A54: 52 | B54: 螺阳镇 | C54: 霞光村 | D54: 惠十六 | E54: 半护理 | F54: 1755 | G54: 823 | H54: 2578
A55: 53 | B55: 螺阳镇 | C55: 霞光村 | D55: 惠二五 | E55: 半护理 | F55: 1755 | G55: 823 | H55: 2578
A56: 54 | B56: 螺阳镇 | C56: 霞光村 | D56: 惠二二 | E56: 半护理 | F56: 1755 | G56: 823 | H56: 2578
A57: 55 | B57: 螺阳镇 | C57: 霞光村 | D57: 贺淑珠 | E57: 半护理 | F57: 1755 | G57: 823 | H57: =F57+G57 -> 2578
A58: 56 | B58: 螺阳镇 | C58: 霞光村 | D58: 惠三三 | E58: 半护理 | F58: 1755 | G58: 823 | H58: 2578
A59: 57 | B59: 螺阳镇 | C59: 霞光村 | D59: 惠三四 | E59: 半护理 | F59: 1755 | G59: 823 | H59: 2578
A60: 58 | B60: 螺城镇 | C60: 霞园社区 | D60: 陈炫炫 | E60: 半护理 | F60: 1755 | G60: 823 | H60: 2578
A61: 59 | B61: 螺阳镇 | C61: 霞光村 | D61: 惠三五 | E61: 半护理 | F61: 1755 | G61: 823 | H61: 2578
A62: 60 | B62: 螺阳镇 | C62: 霞光村 | D62: 惠五零 | E62: 半护理 | F62: 1755 | G62: 823 | H62: 2578
A63: 61 | B63: 螺城镇 | C63: 东关社区 | D63: 庄严 | E63: 半护理 | F63: 1755 | G63: 823 | H63: 2578
A64: 62 | B64: 螺城镇 | C64: 东南社区 | D64: 林新挺 | E64: 半护理 | F64: 1755 | G64: 823 | H64: 2578
A65: 63 | B65: 净峰镇 | C65: 五群村 | D65: 杨培忠 | E65: 全自理 | F65: 1755 | G65: 329 | H65: 2084
A66: 64 | B66: 净峰镇 | C66: 莲峰村 | D66: 陈毓精 | E66: 全自理 | F66: 1755 | G66: 329 | H66: 2084
A67: 65 | B67: 螺阳镇 | C67: 霞光村 | D67: 惠三七 | E67: 半护理 | F67: 1755 | G67: 823 | H67: 2578
A68: 66 | B68: 东岭镇 | C68: 湖边村 | D68: 柳锦山 | E68: 半护理 | F68: 1755 | G68: 823 | H68: 2578
A69: 67 | B69: 崇武镇 | C69: 大岞村 | D69: 张朝和 | E69: 半护理 | F69: 1755 | G69: 823 | H69: 2578
A70: 68 | B70: 黄塘镇 | C70: 尾园村 | D70: 朱清兰 | E70: 全自理 | F70: 1755 | G70: 329 | H70: 2084
A71: 69 | B71: 螺城镇 | C71: 北关社区 | D71: 卢云清 | E71: 全自理 | F71: 1755 | G71: 329 | H71: 2084
A72: 70 | B72: 辋川镇 | C72: 吹楼村 | D72: 徐国明 | E72: 半护理 | F72: 1755 | G72: 823 | H72: 2578
A73: 71 | B73: 辋川镇 | C73: 社坑村 | D73: 陈明良 | E73: 全护理 | F73: 1755 | G73: 1646 | H73: 3401
A74: 72 | B74: 黄塘镇 | C74: 尾园村 | D74: 林家清 | E74: 半护理 | F74: 1755 | G74: 823 | H74: 2578
A75: 73 | B75: 东桥镇 | C75: 香山村 | D75: 张炳泉 | E75: 全护理 | F75: 1755 | G75: 1646 | H75: 3401
A76: 74 | B76: 螺阳镇 | C76: 松光村 | D76: 陈惠平 | E76: 半护理 | F76: 1755 | G76: 823 | H76: =F76+G76 -> 2578
A77: 75 | B77: 螺阳镇 | C77: 五音村 | D77: 陈辉阳 | E77: 半护理 | F77: 1755 | G77: 823 | H77: 2578
A78: 76 | B78: 螺阳镇 | C78: 溪西村 | D78: 陈荣忠 | E78: 半护理 | F78: 1755 | G78: 823 | H78: 2578
A79: 77 | B79: 涂寨镇 | C79: 涂寨村 | D79: 郭海明 | E79: 半护理 | F79: 1755 | G79: 823 | H79: 2578
A80: 78 | B80: 东岭镇 | C80: 许山头村 | D80: 许锦枝 | E80: 全自理 | F80: 1755 | G80: 329 | H80: 2084
A81: 79 | B81: 螺阳镇 | C81: 上坂村 | D81: 蔡捷进 | E81: 半护理 | F81: 1755 | G81: 823 | H81: 2578
A82: 80 | B82: 螺阳镇 | C82: 上坂村 | D82: 蔡捷坚 | E82: 全自理 | F82: 1755 | G82: 329 | H82: 2084
A83: 81 | B83: 崇武镇 | C83: 靖江村 | D83: 陈聪永 | E83: 全自理 | F83: 1755 | G83: 329 | H83: 2084
A84: 82 | B84: 涂寨镇 | C84: 岩峰村 | D84: 黄银来 | E84: 半护理 | F84: 1755 | G84: 823 | H84: 2578
A85: 83 | B85: 东桥镇 | C85: 厝斗村 | D85: 张炎林 | E85: 半护理 | F85: 1755 | G85: 823 | H85: 2578
A86: 84 | B86: 崇武镇 | C86: 海门村 | D86: 何定昆 | E86: 半护理 | F86: 1755 | G86: 823 | H86: 2578
A87: 85 | B87: 黄塘镇 | C87: 尾园村 | D87: 陈国强 | E87: 全自理 | F87: 1755 | G87: 329 | H87: 2084
A88: 86 | B88: 山霞镇 | C88: 宣美村 | D88: 陈惠彬 | E88: 全自理 | F88: 1755 | G88: 329 | H88: 2084
A89: 87 | B89: 东岭镇 | C89: 荷山村 | D89: 刘槐明 | E89: 全自理 | F89: 1755 | G89: 329 | H89: 2084
A90: 88 | B90: 螺阳镇 | C90: 霞光村 | D90: 吴美华 | E90: 半护理 | F90: 1755 | G90: 823 | H90: =F90+G90 -> 2578
A91: 89 | B91: 螺阳镇 | C91: 霞光村 | D91: 惠零一 | E91: 全护理 | F91: 1755 | G91: 1646 | H91: 3401
A92: 90 | B92: 螺阳镇 | C92: 霞光村 | D92: 惠零五 | E92: 半护理 | F92: 1755 | G92: 823 | H92: 2578
A93: 91 | B93: 螺阳镇 | C93: 霞光村 | D93: 惠零六 | E93: 全护理 | F93: 1755 | G93: 1646 | H93: 3401
A94: 92 | B94: 螺阳镇 | C94: 霞光村 | D94: 惠一零 | E94: 半护理 | F94: 1755 | G94: 823 | H94: 2578
A95: 93 | B95: 螺阳镇 | C95: 霞光村 | D95: 惠十二 | E95: 半护理 | F95: 1755 | G95: 823 | H95: 2578
A96: 94 | B96: 螺阳镇 | C96: 霞光村 | D96: 惠十五 | E96: 半护理 | F96: 1755 | G96: 823 | H96: 2578
A97: 95 | B97: 螺阳镇 | C97: 霞光村 | D97: 惠十七 | E97: 全护理 | F97: 1755 | G97: 1646 | H97: 3401
A98: 96 | B98: 螺阳镇 | C98: 霞光村 | D98: 惠十八 | E98: 半护理 | F98: 1755 | G98: 823 | H98: 2578
A99: 97 | B99: 螺阳镇 | C99: 霞光村 | D99: 惠十九 | E99: 半护理 | F99: 1755 | G99: 823 | H99: 2578
A100: 98 | B100: 螺阳镇 | C100: 霞光村 | D100: 惠二一 | E100: 全护理 | F100: 1755 | G100: 1646 | H100: 3401
A101: 99 | B101: 螺阳镇 | C101: 霞光村 | D101: 惠二三 | E101: 半护理 | F101: 1755 | G101: 823 | H101: 2578
A102: 100 | B102: 螺阳镇 | C102: 霞光村 | D102: 惠二四 | E102: 半护理 | F102: 1755 | G102: 823 | H102: 2578
A103: 101 | B103: 辋川镇 | C103: 更新村 | D103: 陈培太 | E103: 全护理 | F103: 1755 | G103: 1646 | H103: 3401
A104: 102 | B104: 螺阳镇 | C104: 霞光村 | D104: 惠二七 | E104: 半护理 | F104: 1755 | G104: 823 | H104: 2578
A105: 103 | B105: 螺阳镇 | C105: 村下村 | D105: 王远山 | E105: 全护理 | F105: 1755 | G105: 1646 | H105: 3401
A106: 104 | B106: 山霞镇 | C106: 东坑村 | D106: 李路欺 | E106: 全护理 | F106: 1755 | G106: 1646 | H106: 3401
A107: 105 | B107: 山霞镇 | C107: 宣美村 | D107: 陈丽珍 | E107: 全自理 | F107: 1755 | G107: 329 | H107: 2084
A108: 106 | B108: 崇武镇 | C108: 五峰村 | D108: 陈振东 | E108: 全护理 | F108: 1755 | G108: 1646 | H108: 3401
A109: 107 | B109: 辋川镇 | C109: 居仁村 | D109: 陈培钦 | E109: 全护理 | F109: 1755 | G109: 1646 | H109: 3401
A110: 108 | B110: 东桥镇 | C110: 后建村 | D110: 曾赐福 | E110: 半护理 | F110: 1755 | G110: 823 | H110: 2578
A111: 109 | B111: 东桥镇 | C111: 梅庄村 | D111: 庄明辉 | E111: 半护理 | F111: 1755 | G111: 823 | H111: 2578
A112: 110 | B112: 黄塘镇 | C112: 省吟村 | D112: 钱雪珍 | E112: 半护理 | F112: 1755 | G112: 823 | H112: 2578
A113: 111 | B113: 黄塘镇 | C113: 下坂村 | D113: 周金柱 | E113: 半护理 | F113: 1755 | G113: 823 | H113: 2578
A114: 112 | B114: 螺阳镇 | C114: 霞光村 | D114: 惠三八 | E114: 全护理 | F114: 1755 | G114: 1646 | H114: 3401
A115: 113 | B115: 崇武镇 | C115: 五峰村 | D115: 王文煊 | E115: 全护理 | F115: 1755 | G115: 1646 | H115: 3401
A116: 114 | B116: 螺阳镇 | C116: 松光村 | D116: 陈远彬 | E116: 半护理 | F116: 1755 | G116: 823 | H116: 2578
A117: 115 | B117: 螺阳镇 | C117: 蒋吴村 | D117: 蒋锦华 | E117: 全护理 | F117: 1755 | G117: 1646 | H117: 3401
A118: 116 | B118: 黄塘镇 | C118: 下坂村 | D118: 施小平 | E118: 全自理 | F118: 1755 | G118: 329 | H118: 2084
A119: 117 | B119: 黄塘镇 | C119: 埔兜村 | D119: 陈国清 | E119: 全自理 | F119: 1755 | G119: 329 | H119: 2084
A120: 118 | B120: 螺阳镇 | C120: 松星村 | D120: 蔡幼珠 | E120: 全护理 | F120: 1755 | G120: 1646 | H120: 3401
A121: 119 | B121: 螺阳镇 | C121: 蔡厝村 | D121: 吴丽凤 | E121: 全护理 | F121: 1755 | G121: 1646 | H121: 3401
A122: 120 | B122: 东桥镇 | C122: 珩山村 | D122: 王宗保 | E122: 半护理 | F122: 1755 | G122: 823 | H122: 2578
A123: 121 | B123: 涂寨镇 | C123: 岩峰村 | D123: 黄庆福 | E123: 半护理 | F123: 1755 | G123: 823 | H123: 2578
A124: 122 | B124: 黄塘镇 | C124: 下坂村 | D124: 郑成玉 | E124: 半护理 | F124: 1755 | G124: 823 | H124: 2578
A125: 123 | B125: 崇武镇 | C125: 海门村 | D125: 王珊珊 | E125: 全护理 | F125: 1755 | G125: 1646 | H125: 3401
A126: 124 | B126: 涂寨镇 | C126: 古山村 | D126: 张美燕 | E126: 半护理 | F126: 1755 | G126: 823 | H126: 2578
A127: 125 | B127: 辋川镇 | C127: 辋川村 | D127: 潘小蓉 | E127: 全护理 | F127: 1755 | G127: 1646 | H127: 3401
A128: 126 | B128: 涂寨镇 | C128: 大厅村 | D128: 杨伙连 | E128: 全护理 | F128: 1755 | G128: 1646 | H128: 3401
A129: 127 | B129: 辋川镇 | C129: 后许村 | D129: 何式珠 | E129: 全护理 | F129: 1755 | G129: 1646 | H129: 3401
A130: 128 | B130: 辋川镇 | C130: 梧山村 | D130: 杨俊丽 | E130: 半护理 | F130: 1755 | G130: 823 | H130: 2578
A131: 129 | B131: 螺阳镇 | C131: 霞光村 | D131: 惠三六 | E131: 全护理 | F131: 1755 | G131: 1646 | H131: 3401
A132: 130 | B132: 螺城镇 | C132: 霞张社区 | D132: 洪启明 | E132: 半护理 | F132: 1755 | G132: 823 | H132: 2578
A133: 131 | B133: 螺城镇 | C133: 中新社区 | D133: 林晓 | E133: 全护理 | F133: 1755 | G133: 1646 | H133: 3401
A134: 132 | B134: 涂寨镇 | C134: 互助村 | D134: 杨清辉 | E134: 全护理 | F134: 1755 | G134: 1646 | H134: 3401
A135: 133 | B135: 辋川镇 | C135: 许厝村 | D135: 程志德 | E135: 全护理 | F135: 1755 | G135: 1646 | H135: 3401
A136: 134 | B136: 螺城镇 | C136: 东南社区 | D136: 林培华 | E136: 半护理 | F136: 1755 | G136: 823 | H136: 2578
A137: 135 | B137: 螺阳镇 | C137: 霞光村 | D137: 惠五一 | E137: 半护理 | F137: 1755 | G137: 823 | H137: 2578
A138: 136 | B138: 黄塘镇 | C138: 后西村 | D138: 赵宝辉 | E138: 全护理 | F138: 1755 | G138: 1646 | H138: 3401
A139: 137 | B139: 东桥镇 | C139: 香山村 | D139: 张金标 | E139: 全护理 | F139: 1755 | G139: 1646 | H139: 3401
A140: 138 | B140: 东桥镇 | C140: 梅庄村 | D140: 庄江辉 | E140: 全护理 | F140: 1755 | G140: 1646 | H140: 3401
A141: 139 | B141: 螺城镇 | C141: 东关社区 | D141: 庄小南 | E141: 全护理 | F141: 1755 | G141: 1646 | H141: 3401
A142: 140 | B142: 东桥镇 | C142: 东湖村 | D142: 张金辉 | E142: 全护理 | F142: 1755 | G142: 1646 | H142: 3401
A143: 141 | B143: 东桥镇 | C143: 坑尾村 | D143: 许杰雄 | E143: 全护理 | F143: 1755 | G143: 1646 | H143: 3401
A144: 142 | B144: 崇武镇 | C144: 靖江村 | D144: 张法生 | E144: 半护理 | F144: 1755 | G144: 823 | H144: 2578
A145: 143 | B145: 崇武镇 | C145: 霞西村 | D145: 曾国南 | E145: 半护理 | F145: 1755 | G145: 823 | H145: 2578
A146: 144 | B146: 东岭镇 | C146: 小坵村 | D146: 刘玉春 | E146: 全护理 | F146: 1755 | G146: 1646 | H146: 3401
A147: 145 | B147: 崇武镇 | C147: 潮乐村 | D147: 林碰奎 | E147: 半护理 | F147: 1755 | G147: 823 | H147: 2578
A148: 146 | B148: 崇武镇 | C148: 潮乐村 | D148: 林建南 | E148: 半护理 | F148: 1755 | G148: 823 | H148: 2578
A149: 147 | B149: 崇武镇 | C149: 潮乐村 | D149: 赵月娥 | E149: 全护理 | F149: 1755 | G149: 1646 | H149: 3401
A150: 148 | B150: 涂寨镇 | C150: 瑞东村 | D150: 卢水吉 | E150: 全护理 | F150: 1755 | G150: 1646 | H150: 3401
A151: 149 | B151: 涂寨镇 | C151: 庄内村 | D151: 庄文山 | E151: 半护理 | F151: 1755 | G151: 823 | H151: 2578
A152: 150 | B152: 东岭镇 | C152: 赤石村 | D152: 张永龙 | E152: 全护理 | F152: 1755 | G152: 1646 | H152: 3401
A153: 151 | B153: 辋川镇 | C153: 峰崎村 | D153: 何志勇 | E153: 全护理 | F153: 1755 | G153: 1646 | H153: =F153+G153 -> 3401
A154: 152 | B154: 辋川镇 | C154: 吹楼村 | D154: 张清华 | E154: 半护理 | F154: 1755 | G154: 823 | H154: 2578
A155: 153 | B155: 辋川镇 | C155: 吹楼村 | D155: 陈水元 | E155: 全护理 | F155: 1755 | G155: 1646 | H155: 3401
A156: 154 | B156: 辋川镇 | C156: 社坑村 | D156: 陈细珠 | E156: 半护理 | F156: 1755 | G156: 823 | H156: 2578
A157: 155 | B157: 崇武镇 | C157: 潮乐村 | D157: 王伟聪 | E157: 全自理 | F157: 1755 | G157: 329 | H157: 2084
A158: 156 | B158: 辋川镇 | C158: 辋川村 | D158: 任伙阳 | E158: 半护理 | F158: 1755 | G158: 823 | H158: 2578
A159: 157 | B159: 净峰镇 | C159: 莲峰村 | D159: 杨淑环 | E159: 半护理 | F159: 1755 | G159: 823 | H159: =F159+G159 -> 2578
A160: 158 | B160: 净峰镇 | C160: 东洋村 | D160: 杨玉成 | E160: 全护理 | F160: 1755 | G160: 1646 | H160: 3401
A161: 159 | B161: 净峰镇 | C161: 前炉村 | D161: 张碧玉 | E161: 半护理 | F161: 1755 | G161: 823 | H161: 2578
A162: 160 | B162: 净峰镇 | C162: 净北村 | D162: 杨亚闷 | E162: 半护理 | F162: 1755 | G162: 823 | H162: 2578
A163: 161 | B163: 净峰镇 | C163: 赤土尾村 | D163: 陈煌英 | E163: 全护理 | F163: 1755 | G163: 1646 | H163: 3401
A164: 162 | B164: 东岭镇 | C164: 西埔村 | D164: 刘明娥 | E164: 半护理 | F164: 1755 | G164: 823 | H164: 2578
A165: 163 | B165: 小岞镇 | C165: 南赛西村 | D165: 庄龙鸿 | E165: 半护理 | F165: 1755 | G165: 823 | H165: 2578
A166: 164 | B166: 小岞镇 | C166: 南赛西村 | D166: 庄见鸿 | E166: 半护理 | F166: 1755 | G166: 823 | H166: 2578
A167: 165 | B167: 螺城镇 | C167: 霞东社区 | D167: 陈玲玲 | E167: 全护理 | F167: 1755 | G167: 1646 | H167: =F167+G167 -> 3401
A168: 166 | B168: 崇武镇 | C168: 靖江村 | D168: 汪银法 | E168: 全护理 | F168: 1755 | G168: 1646 | H168: 3401
A169: 167 | B169: 螺城镇 | C169: 东关社区 | D169: 王洋 | E169: 半护理 | F169: 1755 | G169: 823 | H169: 2578
A170: 168 | B170: 螺城镇 | C170: 西北社区 | D170: 杨劲峰 | E170: 全护理 | F170: 1755 | G170: 1646 | H170: 3401
A171: 169 | B171: 螺城镇 | C171: 中新社区 | D171: 黄惠坚 | E171: 半护理 | F171: 1755 | G171: 823 | H171: 2578
A172: 170 | B172: 螺城镇 | C172: 霞园社区 | D172: 陈佳伟 | E172: 全自理 | F172: 1755 | G172: 329 | H172: 2084
A173: 171 | B173: 东岭镇 | C173: 东岭村 | D173: 陈钦江 | E173: 全护理 | F173: 1755 | G173: 1646 | H173: 3401
A174: 172 | B174: 螺城镇 | C174: 东关社区 | D174: 王庆炎 | E174: 半护理 | F174: 1755 | G174: 823 | H174: 2578
A175: 173 | B175: 螺城镇 | C175: 霞东社区 | D175: 陈晓忧 | E175: 全护理 | F175: 1755 | G175: 1646 | H175: 3401
A176: 174 | B176: 螺城镇 | C176: 东关社区 | D176: 王惠平 | E176: 半护理 | F176: 1755 | G176: 823 | H176: 2578
A177: 175 | B177: 螺城镇 | C177: 东关社区 | D177: 王建阳 | E177: 全自理 | F177: 1755 | G177: 329 | H177: 2084
A178: 176 | B178: 螺城镇 | C178: 霞东社区 | D178: 陈培南 | E178: 全自理 | F178: 1755 | G178: 329 | H178: 2084
A179: 177 | B179: 螺城镇 | C179: 霞东社区 | D179: 蔡土生 | E179: 全护理 | F179: 1755 | G179: 1646 | H179: 3401
A180: 178 | B180: 螺城镇 | C180: 东南社区 | D180: 郑锦川 | E180: 半护理 | F180: 1755 | G180: 823 | H180: 2578
A181: 179 | B181: 螺城镇 | C181: 霞东社区 | D181: 陈洋洋 | E181: 全护理 | F181: 1755 | G181: 1646 | H181: 3401
A182: 180 | B182: 螺阳镇 | C182: 松光村 | D182: 叶宝珠 | E182: 全护理 | F182: 1755 | G182: 1646 | H182: 3401
A183: 181 | B183: 崇武镇 | C183: 莲西村 | D183: 汪国生 | E183: 半护理 | F183: 1755 | G183: 823 | H183: 2578
A184: 182 | B184: 涂寨镇 | C184: 瑞东村 | D184: 卢伙法 | E184: 全护理 | F184: 1755 | G184: 1646 | H184: 3401
A185: 183 | B185: 崇武镇 | C185: 靖江村 | D185: 张荣水 | E185: 半护理 | F185: 1755 | G185: 823 | H185: 2578
A186: 184 | B186: 螺城镇 | C186: 西北社区 | D186: 张加文 | E186: 半护理 | F186: 1755 | G186: 823 | H186: 2578
F187: =SUM(F3:F186) -> 322920 | G187: =SUM(G3:G186) -> 185007 | H187: =SUM(H3:H186) -> 507927
